[Event "Czech Open-GM 2022"]
[Site "Pardubice"]
[Date "2022.07.25"]
[Round "4.19"]
[White "Strebkovs, Andrejs"]
[Black "Lokander, Martin"]
[Result "1/2-1/2"]
[ECO "C50"]
[WhiteElo "2283"]
[BlackElo "2483"]
[Annotator "TA"]
[PlyCount "104"]
[EventDate "2022.07.22"]
[EventType "swiss"]
[EventCountry "CZE"]
[SourceTitle "playchess.com"]
[Source "ChessBase"]
[SourceQuality "1"]
[TimeControl "40/5400+30:1800+30"]

{[%evp 9,104,11,12,7,5,-6,-5,-17,-17,-19,0,-20,0,-9,0,0,0,0,0,-2,16,0,-9,-16,0,-34,-38,-35,-40,-16,0,0,13,6,7,0,0,-4,-19,-16,0,-17,-18,-38,-38,-37,-26,-42,-48,-52,-29,-33,-33,-43,-25,-108,-113,-102,-99,-102,-116,-131,-48,-48,-8,-10,0,-16,0,0,0,0,0,0,0,0,0,0,0,0,0,0,8,14,9,0,0,0,0,0,19,0,0,0,19,0,0]} 1. e4 {[%emt 0:00:05]} e5 {[%emt 0:00:09]} 2. Nf3 {[%emt 0:00:59]} Nc6 {[%emt 0:00:01]} 3. Bc4 {[%emt 0:01:34]} Nf6 {[%emt 0:00:43]} 4. d3 {[%emt 0:03:50]} Bc5 {[%emt 0:03:40]} 5. Nc3 {[%emt 0:02:48]} h6 {[%emt 0:00:31]} 6. a4 {[%emt 0:02:42] C50: Hungarian Defence and Giuoco Pianissimo.} d6 {[%emt 0:01:16]} 7. h3 {[%emt 0:00:55]} Be6 {[%emt 0:06:58] [#]} 8. O-O $146 {[%emt 0:10:02]} ({Predecessor:} 8. Nd5 O-O 9. c3 Bxd5 10. Bxd5 Nxd5 11. exd5 Ne7 12. b4 Bb6 13. a5 Bxa5 14. Rxa5 b6 {1-0 (65) Schmiederer,L (850)-Schoenweiler,E (832) Oberhof 2012}) 8... Bxc4 {[%emt 0:03:40]} 9. dxc4 {[%emt 0:00:06]} O-O {[%emt 0:01:13]} 10. Re1 {[%emt 0:05:59]} Qd7 {[%emt 0:06:15]} 11. Be3 {[%emt 0:04:56]} Bb4 {[%emt 0:00:44]} 12. Bd2 {[%emt 0:01:35]} Bxc3 {[%emt 0:02:22]} 13. Bxc3 {[%emt 0:01:51]} Qe6 {[%emt 0:00:01]} 14. b3 {[%emt 0:00:56]} Ne7 {[%emt 0:02:07]} 15. Nh2 {[%emt 0:06:32][%cal Bf3h2,Bh2g4,Bg4e3,Be3d5][%mdl 32]} Nd7 {[%emt 0:10:10]} 16. Ng4 {[%emt 0:07:01]} Qg6 {[%emt 0:07:39]} 17. Ne3 {[%emt 0:03:21]} Nc5 {[%emt 0:01:23]} ({Don't do} 17... Qxe4 18. Nd5 Nxd5 19. Rxe4 $11) 18. f3 {[%emt 0:03:14]} Ne6 {[%emt 0:01:54]} 19. Kh2 {[%emt 0:01:37]} Kh8 {[%emt 0:03:59]} 20. Nd5 {[%emt 0:02:02]} Nc6 {[%emt 0:05:23]} 21. Qd2 {[%emt 0:06:04]} f5 {[%emt 0:00:42]} 22. exf5 {[%emt 0:02:31]} Rxf5 {[%emt 0:00:13]} 23. Re4 {[%emt 0:01:25]} Raf8 {[%emt 0:00:19]} 24. Rg4 {[%emt 0:02:00]} Qh5 {[%emt 0:01:40]} 25. Ne3 {[%emt 0:05:04]} R5f7 {[%emt 0:03:45][%cal Oe5e4]} 26. Qe1 {[%emt 0:02:04]} Ncd4 {[%emt 0:11:53]} 27. Bxd4 {[%emt 0:05:14]} Nxd4 {[%emt 0:00:09]} 28. Qh4 {[%emt 0:02:27]} Qxh4 {[%emt 0:00:58]} 29. Rxh4 {[%emt 0:00:02]} Rf4 {[%emt 0:00:58]} 30. Rg4 {[%emt 0:01:47]} Kh7 {[%emt 0:01:26]} 31. Rc1 {[%emt 0:01:54]} c6 {[%emt 0:02:42]} 32. b4 {[%emt 0:02:01] [#]} (32. Rd1 $11) 32... h5 $1 $17 {[%emt 0:01:38]} 33. Rxf4 {[%emt 0:03:32]} exf4 {[%emt 0:00:03][%mdl 4096] Endgame KRN-KRN} 34. Nf1 {[%emt 0:02:43]} Re8 {[%emt 0:00:37]} 35. Rd1 {[%emt 0:01:57] [#]} Nxc2 {[%emt 0:01:07]} ({Better is} 35... Nf5 $1 $17 {White must now prevent ...Re2.} 36. Kg1 a5) 36. Rxd6 $15 {[%emt 0:00:27]} Re1 {[%emt 0:00:10]} 37. Nd2 {[%emt 0:00:45] The position is equal.} Ne3 {[%emt 0:00:40] Strongly threatening ...Nf5.} 38. g4 {[%emt 0:01:42] Against Nf5} Re2+ {[%emt 0:15:46]} 39. Kh1 {[%emt 0:01:38]} Re1+ {[%emt 0:00:04]} 40. Kh2 {[%emt 0:00:08]} hxg4 {[%emt 0:04:38]} 41. hxg4 {[%emt 0:31:08]} Re2+ {[%emt 0:07:13]} 42. Kg1 {[%emt 0:00:00]} Kg8 {[%emt 0:03:26]} 43. Rd7 {[%emt 0:00:00]} b6 {[%emt 0:05:30]} 44. Ne4 {[%emt 0:00:00]} Nxc4 {[%emt 0:04:11]} 45. Rxa7 {[%emt 0:00:00]} Rb2 {[%emt 0:01:41]} 46. Ng5 {[%emt 0:00:00][%cal Ra7a8]} g6 {[%emt 0:00:01]} 47. Rc7 {[%emt 0:00:00]} Rxb4 {[%emt 0:02:44]} 48. Rxc6 {[%emt 0:00:00]} Kg7 {[%emt 0:00:50]} 49. Ne6+ {[%emt 0:00:00]} Kf7 {[%emt 0:00:29]} 50. Ng5+ {[%emt 0:00:00]} Kg7 {[%emt 0:00:03]} 51. Ne6+ {[%emt 0:00:00]} Kf7 {[%emt 0:02:38]} 52. Ng5+ {[%emt 0:00:00]} Kg7 {[%emt 0:00:42] Weighted Error Value: White=0.09 (flawless) /Black=0.08 (flawless)} 1/2-1/2

[Event "Czech Open-GM 2022"]
[Site "Pardubice"]
[Date "2022.07.25"]
[Round "4.20"]
[White "Bronstein, Or"]
[Black "Muetsch, Annmarie"]
[Result "1-0"]
[ECO "C41"]
[WhiteElo "2476"]
[BlackElo "2249"]
[Annotator "TA"]
[PlyCount "127"]
[EventDate "2022.07.22"]
[EventType "swiss"]
[EventCountry "CZE"]
[SourceTitle "playchess.com"]
[Source "ChessBase"]
[SourceQuality "1"]
[TimeControl "40/5400+30:1800+30"]

{[%evp 14,127,41,42,37,43,44,29,32,32,70,43,45,43,88,73,95,81,81,79,88,87,88,86,98,33,72,76,293,145,152,0,0,0,0,-42,-35,-104,-82,-82,-11,-44,-57,-10,-75,-69,42,28,23,30,20,-4,91,92,89,98,97,94,88,0,0,0,0,0,0,0,25,21,43,32,42,-7,71,77,81,72,69,22,23,32,21,21,23,22,32,31,125,116,129,103,102,30,97,112,98,56,194,171,448,56,329,168,285,273,577,216,224,214,718,716,628,670,1043,901,1454,806]} 1. d4 {[%emt 0:00:03]} d6 {[%emt 0:00:19]} 2. e4 {[%emt 0:01:35]} Nf6 {[%emt 0:00:09]} 3. Nc3 {[%emt 0:00:02]} e5 {[%emt 0:00:07]} 4. Nf3 {[%emt 0:00:06]} Nbd7 {[%emt 0:00:06]} 5. Bc4 {[%emt 0:00:05]} Be7 {[%emt 0:00:07]} 6. O-O {[%emt 0:00:05]} O-O {[%emt 0:02:09]} 7. Re1 {[%emt 0:00:26]} a6 {[%emt 0:00:31]} 8. a4 {[%emt 0:00:09]} b6 {[%emt 0:00:12] C41: Philidor Defence.} 9. Ba2 {[%emt 0:07:24] 9.Nd5 is the modern continuation.} Bb7 {[%emt 0:02:49][%cal Ob6b5]} 10. Qd3 {[%emt 0:04:59]} c6 {[%emt 0:06:14] White has an edge.} 11. dxe5 {[%emt 0:01:16]} dxe5 {[%emt 0:02:54] [#]} 12. Nh4 $146 {[%emt 0:11:13]} ({Predecessor:} 12. Bg5 b5 13. Bxf6 Bxf6 14. Red1 Nc5 15. Qe3 Qe7 16. h3 Rfd8 17. a5 g6 18. Ne2 Kg7 19. Ng3 h5 20. Nf1 Rxd1 21. Rxd1 Bc8 22. N1d2 Be6 23. Bxe6 {½-½ (23) Borocz,I (2415)-Kiss,A (2395) Hungary 1997}) 12... Nc5 {[%emt 0:21:45]} 13. Qf3 {[%emt 0:00:03]} Ne6 {[%emt 0:09:57]} 14. Nf5 {[%emt 0:07:30] Qg3 is the strong threat.} Bc5 {[%emt 0:10:26]} 15. Qg3 {[%emt 0:09:02]} Qc7 {[%emt 0:01:49]} 16. Bh6 {[%emt 0:03:20][%cal Rh6g7]} Ne8 {[%emt 0:03:36]} 17. Rad1 {[%emt 0:02:09]} Kh8 {[%emt 0:01:40]} 18. Be3 {[%emt 0:04:10] 0x0.0005eae53473dp-1022s more active pieces. The black rooks are badly placed.} Bb4 {[%emt 0:02:08]} 19. Qh4 {[%emt 0:05:40]} (19. Bxe6 $16 {Strongly threatening Rd7.} fxe6 20. Nh4) 19... b5 {[%emt 0:03:14]} 20. Rd3 {[%emt 0:03:18]} g6 $2 {[%emt 0:08:48] [#]} (20... Bc8 $16 {was worth a try.}) 21. Red1 $1 {[%emt 0:04:08]} Bc8 $16 {[%emt 0:04:26]} (21... gxf5 $2 22. Rd7 Qxd7 23. Rxd7 $18) 22. Nh6 {[%emt 0:06:12]} (22. Bxe6 $16 Bxe6 23. Nh6) 22... Be7 $11 {[%emt 0:01:09]} 23. Qg3 {[%emt 0:00:04][%cal Oa4a5]} f5 {[%emt 0:05:49]} 24. exf5 {[%emt 0:05:29]} (24. Bxe6 $5 Bxe6 25. Bg5 $11) 24... gxf5 {[%emt 0:00:07] And now ...f4 would win.} 25. Qh3 {[%emt 0:01:40]} (25. Bxe6 $15 Bxe6 26. Bg5 Bxg5 27. Qxg5) 25... N8g7 $1 $17 {[%emt 0:01:21]} 26. g4 {[%emt 0:16:45][%cal Rg4f5]} f4 {[%emt 0:04:12]} (26... e4 $17 27. Bxe6 (27. R3d2 f4 $17) 27... exd3 28. Nf7+ Rxf7 $1 {[%mdl 512]} 29. Bxf7 dxc2) 27. Bc1 {[%emt 0:00:01]} Ng5 {[%emt 0:00:23]} 28. Qg2 {[%emt 0:00:58]} Rf6 {[%emt 0:03:53]} 29. Ng8 {[%emt 0:04:34]} Rf8 {[%emt 0:00:31]} (29... Rg6 $1 $15 30. Nxe7 Qxe7) 30. h4 $36 {[%emt 0:00:27][%mdl 2048] Black is under pressure.} N5e6 {[%emt 0:00:47]} 31. Nxe7 {[%emt 0:01:14]} Qxe7 {[%emt 0:00:04]} 32. Qxc6 {[%emt 0:00:16]} Bb7 {[%emt 0:01:30]} (32... Ra7 $11) 33. Qd7 $1 $16 {[%emt 0:00:00]} Qxd7 {[%emt 0:00:53]} 34. Rxd7 {[%emt 0:00:01]} Bf3 {[%emt 0:00:27][%csl LRd1,LRg4]} 35. Re1 $1 {[%emt 0:01:04]} Bxg4 {[%emt 0:01:32] Threatens to win with ...Nd4.} 36. Rxe5 {[%emt 0:00:03]} (36. f3 $1 $16 {[%cal Rf3g4]} Bxf3 37. Rxe5) 36... Ng5 $1 $11 {[%emt 0:00:29]} 37. hxg5 {[%emt 0:01:21]} Bxd7 {[%emt 0:00:04]} 38. Nd5 {[%emt 0:01:17]} Be6 {[%emt 0:01:24]} 39. Bd2 {[%emt 0:00:44]} Bxd5 {[%emt 0:00:36]} 40. Bxd5 {[%emt 0:00:19]} Rae8 {[%emt 0:01:03]} 41. Rxe8 {[%emt 0:30:43]} Nxe8 $14 {[%emt 0:05:53][%mdl 4096] Endgame KRN-KB} 42. Bc6 {[%emt 0:00:00]} (42. c4 $14) 42... Ng7 {[%emt 0:11:25]} (42... Nc7 $11 {keeps the balance.}) 43. axb5 $16 {[%emt 0:00:00]} axb5 {[%emt 0:00:04]} 44. Bxb5 {[%emt 0:00:00]} Rf5 {[%emt 0:00:04]} 45. Bd3 {[%emt 0:00:00]} (45. c4 $14 {deserves consideration.}) 45... Rxg5+ $11 {[%emt 0:00:04]} 46. Kf1 {[%emt 0:00:00]} Ne6 {[%emt 0:05:20]} 47. Bc4 {[%emt 0:00:00]} Rg6 {[%emt 0:00:23]} 48. b4 {[%emt 0:00:00] White wants to play Bd5.} Kg7 {[%emt 0:02:29]} 49. b5 {[%emt 0:00:00]} Nc5 {[%emt 0:01:22]} (49... Kf8 $1 $14) 50. Bxf4 $16 {[%emt 0:00:00]} Rg4 {[%emt 0:00:41]} 51. Be5+ {[%emt 0:00:00]} Kg6 {[%emt 0:00:18]} 52. Be2 {[%emt 0:00:00] A strong pair of Bishops.} (52. f4 $1 $16) 52... Rb4 {[%emt 0:02:53]} (52... Ra4 $1 $11 {remains equal.}) 53. Bd6 {[%emt 0:00:00]} Rb1+ {[%emt 0:00:07]} 54. Kg2 {[%emt 0:00:00]} Ne6 {[%emt 0:01:09]} (54... Na4 $14) 55. c4 $18 {[%emt 0:00:00]} Kg5 $2 {[%emt 0:00:33] [#]} (55... Kf6 56. f4 Rb3) 56. Be7+ $2 {[%emt 0:00:00]} ({Not} 56. Bd3 Rd1 57. b6 (57. Be7+ Kf4 $16) 57... Rxd3 $16) ({Only move:} 56. c5 $1 $18) 56... Kh6 $2 {[%emt 0:02:06][%mdl 8192]} ({Better is} 56... Kf4 $14) 57. Bf3 {[%emt 0:00:00]} (57. Bg4 $142 Nd4 58. Bf6 Nxb5 59. cxb5 Rxb5 60. f4) 57... Nf4+ {[%emt 0:00:53]} (57... Kg7 {was necessary.} 58. Be4 Rb3) 58. Kg3 {[%emt 0:00:00]} Ng6 {[%emt 0:00:44]} (58... Nd3 59. Bd5 Kg6) 59. Bd6 $2 {[%emt 0:00:04]} (59. Bc5) 59... Kg5 {[%emt 0:00:55] [#]} 60. Bc7 $1 {[%emt 0:01:57] Hoping for b6.} Kf5 $2 {[%emt 0:02:15]} (60... Nf8 61. Bb6 Kf6 62. Bd4+ Ke6) 61. b6 {[%emt 0:02:38] aiming for c5. White is clearly winning.} Ne5 {[%emt 0:00:24]} 62. Bd5 {[%emt 0:00:28] Black must now prevent f3.} Rg1+ {[%emt 0:00:45]} 63. Kh2 {[%emt 0:00:53]} Rg6 {[%emt 0:00:31]} 64. f3 {[%emt 0:00:06] Weighted Error Value: White=0.37/Black=0.53} 1-0

[Event "Czech Open-GM 2022"]
[Site "Pardubice"]
[Date "2022.07.25"]
[Round "4.21"]
[White "Dobrowolski, Piotr"]
[Black "Nemec, Vjekoslav"]
[Result "1-0"]
[ECO "B99"]
[WhiteElo "2423"]
[BlackElo "2243"]
[Annotator "TA"]
[PlyCount "97"]
[EventDate "2022.07.22"]
[EventType "swiss"]
[EventCountry "CZE"]
[SourceTitle "playchess.com"]
[Source "ChessBase"]
[SourceQuality "1"]
[TimeControl "40/5400+30:1800+30"]

{[%evp 18,96,25,27,36,-36,-34,-31,-28,-30,-44,-53,7,7,7,7,60,46,33,50,57,55,53,49,58,46,62,64,58,60,88,42,219,216,268,265,225,232,220,196,297,250,293,84,156,150,159,104,93,89,94,104,238,106,96,76,152,136,904,701,693,689,698,658,824,850,841,818,1248,1102,1235,1196,1104,1004,29994,-333,29995,29996,29998,29999,29999]} 1. e4 {[%emt 0:00:08]} c5 {[%emt 0:00:10]} 2. Nf3 {[%emt 0:00:16]} d6 {[%emt 0:00:07]} 3. d4 {[%emt 0:00:10]} cxd4 {[%emt 0:00:09]} 4. Nxd4 {[%emt 0:00:13]} Nf6 {[%emt 0:00:08]} 5. Nc3 {[%emt 0:00:08]} a6 {[%emt 0:00:06]} 6. Bg5 {[%emt 0:00:24]} e6 {[%emt 0:00:29]} 7. f4 {[%emt 0:00:28][%cal Bf2f4,Bf4f5][%mdl 32]} Be7 {[%emt 0:00:16]} 8. Qf3 {[%emt 0:00:15]} Qc7 {[%emt 0:00:14]} 9. O-O-O {[%emt 0:00:25]} Nbd7 {[%emt 0:00:29]} 10. f5 {[%emt 0:01:33]} e5 {[%emt 0:06:03] B99: Sicilian Najdorf: 6 Bg5 e6 7 f4 Be7 8 Qf3 Qc7 9 0-0-0 Nbd7.} 11. Nde2 {[%emt 0:00:21]} (11. Nb3 $14) 11... b5 $1 $15 {[%emt 0:05:33]} 12. Bxf6 {[%emt 0:00:27]} Nxf6 {[%emt 0:00:20] Black is slightly better.} 13. Nd5 {[%emt 0:00:07]} Nxd5 {[%emt 0:01:44]} 14. exd5 {[%emt 0:00:06]} Bd7 {[%emt 0:05:16]} (14... b4 $15) 15. Ng3 $1 $11 {[%emt 0:03:34]} Rc8 {[%emt 0:05:16][%csl Gc8][%cal Rc7c2]} 16. Bd3 {[%emt 0:01:17] Active counter play!} Bf6 {[%emt 0:04:59] [#]} ({Better is} 16... O-O $11) 17. Ne4 $146 {[%emt 0:09:36]} ({Predecessor:} 17. Nh5 Ke7 18. h4 h6 19. g4 Qa5 20. Kb1 Qb4 21. a3 Qa4 22. Rdg1 b4 23. g5 bxa3 24. gxf6+ gxf6 {0-1 (57) Lagunow,R (2378)-Klimkowski,J (2296) Chess.com INT 2021}) 17... h5 {[%emt 0:03:56]} 18. g3 {[%emt 0:02:09][%cal Bg2g3,Bg3g4,Bg4g5][%mdl 32]} b4 {[%emt 0:03:58]} 19. Kb1 {[%emt 0:11:53]} a5 {[%emt 0:04:09]} 20. h3 {[%emt 0:02:49]} a4 {[%emt 0:03:22]} 21. g4 {[%emt 0:13:46]} a3 {[%emt 0:02:05]} 22. g5 {[%emt 0:02:28]} Bd8 {[%emt 0:00:41]} 23. b3 $1 {[%emt 0:04:47]} Qb6 {[%emt 0:07:55]} 24. Bc4 {[%emt 0:00:43]} (24. h4 $16) 24... Qb8 $2 {[%emt 0:03:42]} (24... h4 $1 $14) 25. Ba6 $18 {[%emt 0:02:28]} Bb6 {[%emt 0:01:40]} 26. Bxc8 {[%emt 0:01:00]} Bxc8 {[%emt 0:00:02]} 27. Rhf1 {[%emt 0:05:07]} Ba6 {[%emt 0:01:43]} 28. Rfe1 {[%emt 0:01:29] g6 is the strong threat.} Kd7 {[%emt 0:04:18]} (28... Qc7 $142 29. h4 Kd8) 29. c4 {[%emt 0:09:17][%cal Oc4c5]} bxc3 {[%emt 0:00:28]} 30. Nxc3 $2 {[%emt 0:01:30] Really sharp!} (30. Qxc3 $18 {and the rest is easy.} Rc8 31. Qf3) 30... Qa7 {[%emt 0:06:37]} ({Black should play} 30... Ba5) 31. Rc1 {[%emt 0:01:44]} Bf2 {[%emt 0:01:02] [#]} 32. Re4 {[%emt 0:04:02]} (32. Re2 $142 $1 {[%cal Re2f2][%mdl 512]} Bh4 33. f6) 32... Bd4 $16 {[%emt 0:01:12]} 33. Ne2 {[%emt 0:00:13]} Bb2 {[%emt 0:01:26]} 34. Rc2 {[%emt 0:00:17] Black must now prevent h4.} ({Much weaker is} 34. Rc6 $6 Rc8 $11) 34... Bb5 {[%emt 0:02:43]} (34... Bxe2 $16 {might work better.} 35. Qxe2 Qg1+ 36. Qe1 Qxg5) 35. Rxb2 {[%emt 0:01:13]} (35. h4 $18 {is more deadly. And now f6 would win.} Kd8 36. Re3) 35... axb2 {[%emt 0:00:03]} 36. Kxb2 {[%emt 0:00:07]} Qc5 {[%emt 0:03:40] [#]} (36... Bxe2 $142 37. Qxe2 Rc8) 37. Nc3 $1 $36 {[%emt 0:02:37][%mdl 2048] Threatens to win with b4. Black is under strong pressure.} h4 $2 {[%emt 0:01:44][%mdl 8192]} (37... Rc8 $16) 38. b4 {[%emt 0:02:47][%cal Bb3b4,Bb4b5,Bb5b6][%mdl 32]} Qb6 {[%emt 0:00:12]} 39. a4 {[%emt 0:01:09]} Ba6 {[%emt 0:00:11]} 40. b5 {[%emt 0:00:22]} Bb7 {[%emt 0:01:25]} 41. f6 {[%emt 0:33:18]} g6 {[%emt 0:31:04]} 42. Qg4+ {[%emt 0:13:11]} Kd8 {[%emt 0:02:56]} 43. Rc4 {[%emt 0:01:21]} Qf2+ {[%emt 0:01:57]} 44. Kb3 {[%emt 0:00:35]} Qg3 {[%emt 0:00:26]} 45. b6 {[%emt 0:00:00][%cal Oc4c8] Rc8+! would kill now.} Rh5 {[%emt 0:00:00] [#]} 46. Rc8+ $3 {[%emt 0:00:00][%mdl 512]} Bxc8 {[%emt 0:00:00]} 47. Qc4 {[%emt 0:00:00] White mates.} Qxh3 {[%emt 0:00:00]} 48. Qc7+ {[%emt 0:00:00]} Ke8 {[%emt 0:00:00]} 49. Qe7# {[%emt 0:00:00] Weighted Error Value: White=0.22 (precise) /Black=0.59} 1-0

[Event "Czech Open-GM 2022"]
[Site "Pardubice"]
[Date "2022.07.25"]
[Round "4.22"]
[White "Goroshkov, Maksym"]
[Black "Smith, Bryan"]
[Result "1/2-1/2"]
[ECO "C07"]
[WhiteElo "2240"]
[BlackElo "2421"]
[Annotator "TA"]
[PlyCount "118"]
[EventDate "2022.07.22"]
[EventType "swiss"]
[EventCountry "CZE"]
[SourceTitle "playchess.com"]
[Source "ChessBase"]
[SourceQuality "1"]
[TimeControl "40/5400+30:1800+30"]

{[%evp 10,118,0,-11,-12,-9,0,-2,4,-10,-13,-10,-14,-15,-12,-17,-9,-56,-46,-52,-39,-45,-37,-77,-57,-78,-73,-85,-85,-85,-84,-88,-77,-81,-90,-89,-66,-73,-51,-45,-38,-47,-25,-47,-47,-53,-61,-86,0,-5,-6,-14,-14,-95,-95,-95,-95,-95,-95,-95,-95,-126,-126,-126,-126,-126,-106,-476,-571,-476,-469,-443,-426,-1434,-1393,-1306,-126,-126,-126,-126,-126,-126,-126,-126,-65,-65,0,0,0,0,0,0,0,0,0,0,0,0,0,0,0,0,0,0,0,0,0,0,0,0,0]} 1. e4 {[%emt 0:00:06]} e6 {[%emt 0:00:25]} 2. d4 {[%emt 0:00:27]} d5 {[%emt 0:00:06]} 3. Nd2 {[%emt 0:00:26]} c5 {[%emt 0:01:01]} 4. c3 {[%emt 0:01:05]} cxd4 {[%emt 0:02:08]} 5. cxd4 {[%emt 0:00:27]} dxe4 {[%emt 0:00:23]} 6. Nxe4 {[%emt 0:00:15]} Bd7 {[%emt 0:03:46] C07: French Tarrasch: 3...c5, 4 Ngf3 and 4 exd5 Qxd5.} 7. Nf3 {[%emt 0:01:48]} Bc6 {[%emt 0:01:11]} 8. Nc3 {[%emt 0:00:39]} Nd7 {[%emt 0:01:10]} 9. Be2 {[%emt 0:00:41]} Ngf6 {[%emt 0:00:37]} 10. O-O {[%emt 0:00:27] [#]} Be7 $146 {[%emt 0:07:19]} ({Predecessor:} 10... Bd6 11. Bb5 Bxb5 12. Nxb5 Bb8 13. Bg5 h6 14. Bh4 O-O 15. Rc1 Bf4 16. Rc2 Qa5 {0-1 (36) Caglar,S (2250)-Moreno Trujillo,A (2483) Tornelo INT 2021}) 11. Bf4 {[%emt 0:01:00]} O-O {[%emt 0:00:48]} 12. Rc1 {[%emt 0:01:14]} Qb6 {[%emt 0:05:10]} 13. Qb3 {[%emt 0:00:36]} (13. Qc2 $11 {might be stronger.}) 13... Qxb3 $15 {[%emt 0:05:02]} 14. axb3 {[%emt 0:00:58]} Nd5 {[%emt 0:04:19]} 15. Nxd5 {[%emt 0:04:22]} Bxd5 {[%emt 0:01:35]} 16. Nd2 {[%emt 0:00:13]} Rfc8 {[%emt 0:03:48]} 17. Bf3 {[%emt 0:01:21]} Nb6 {[%emt 0:02:12]} 18. Nc4 {[%emt 0:04:04]} Bxf3 {[%emt 0:02:52]} ({Don't play} 18... Nxc4 $6 19. bxc4 Bxf3 20. gxf3 $15) 19. Nxb6 {[%emt 0:00:07]} axb6 {[%emt 0:00:07]} 20. gxf3 {[%emt 0:00:06]} Kf8 {[%emt 0:02:59]} 21. Rxc8+ {[%emt 0:01:56]} Rxc8 $17 {[%emt 0:00:06][%mdl 4096] Endgame KRB-KRB} 22. Ra1 {[%emt 0:00:08]} Bf6 {[%emt 0:02:53]} 23. Ra7 {[%emt 0:00:17]} Bxd4 {[%emt 0:01:06]} (23... g5 $5 {[%cal Rg5f4]} 24. Be3 Rc7 $15) 24. Rxb7 {[%emt 0:00:13]} Rc2 {[%emt 0:05:39]} 25. Be3 {[%emt 0:00:05]} e5 {[%emt 0:01:50]} 26. Bxd4 {[%emt 0:02:30]} exd4 {[%emt 0:00:06]} 27. Rxb6 {[%emt 0:00:04]} Rxb2 $11 {[%emt 0:03:47] KR-KR} 28. Rd6 {[%emt 0:00:12]} Rb1+ {[%emt 0:01:55]} (28... Rxb3 $17 {Threatens to win with ...Rb4.} 29. Rxd4 Rxf3) 29. Kg2 {[%emt 0:00:05]} Rd1 {[%emt 0:00:31]} 30. Rd7 {[%emt 0:03:06]} Ke8 {[%emt 0:01:33]} 31. Rc7 {[%emt 0:00:13] [#]} (31. Rd5 $11) 31... Rb1 $1 $17 {[%emt 0:01:54]} 32. Rc4 {[%emt 0:00:25]} d3 {[%emt 0:00:21] Strongly threatening ...d2.} 33. Re4+ {[%emt 0:00:22]} Kf8 {[%emt 0:00:06]} 34. Rd4 {[%emt 0:00:09]} Rxb3 {[%emt 0:00:05]} 35. f4 {[%emt 0:00:31]} Ke7 {[%emt 0:02:03]} 36. Kf3 {[%emt 0:01:08]} Ke6 {[%emt 0:03:08]} 37. Ke3 {[%emt 0:02:13]} h6 {[%emt 0:02:10]} 38. h3 $2 {[%emt 0:04:13][%mdl 8192]} (38. h4 $17) 38... d2+ $1 $19 {[%emt 0:07:15]} 39. Kxd2 {[%emt 0:00:10]} Rxh3 {[%emt 0:00:06]} 40. Ke2 {[%emt 0:00:13]} g6 {[%emt 0:01:34]} 41. Kf1 {[%emt 0:31:33]} (41. f3 $142 Rh2+ 42. Ke3) 41... Kf5 {[%emt 0:30:45]} 42. Kg2 {[%emt 0:00:10]} Rh4 $2 {[%emt 0:01:19]} (42... Ra3 $19 {and Black stays clearly on top.} 43. f3 h5) 43. Kg3 $17 {[%emt 0:00:07]} Rg4+ {[%emt 0:00:15]} 44. Kf3 {[%emt 0:00:06] [#] aiming for Rd5+.} Rg1 $1 {[%emt 0:02:18]} 45. Rd5+ {[%emt 0:00:10]} Ke6 {[%emt 0:00:25]} 46. Ra5 {[%emt 0:00:09][%cal Of4f5]} h5 {[%emt 0:00:40]} (46... Kf6 $17 47. Ra6+ Kg7) 47. f5+ $1 $15 {[%emt 0:00:41]} gxf5 {[%emt 0:00:40]} (47... Kf6 $15 48. fxg6 fxg6 49. Ra6+ Kg7) 48. Ra6+ $11 {[%emt 0:00:07] The position is equal.} Ke5 {[%emt 0:00:15]} 49. Rh6 $1 {[%emt 0:00:07]} Rg5 {[%emt 0:06:04]} 50. Ke3 {[%emt 0:00:11] f4+ is the strong threat.} f4+ {[%emt 0:00:35]} 51. Kf3 {[%emt 0:00:06]} f6 {[%emt 0:07:26]} 52. Rh7 {[%emt 0:00:41]} Kf5 {[%emt 0:00:25]} 53. Rh6 {[%emt 0:00:07]} Ke6 {[%emt 0:00:37]} 54. Rh7 {[%emt 0:00:04]} Ke5 {[%emt 0:00:20]} 55. Rh8 {[%emt 0:00:11]} Ke6 {[%emt 0:01:46]} 56. Rh7 {[%emt 0:00:04]} Rf5 {[%emt 0:00:41]} 57. Ra7 {[%emt 0:00:41]} Rb5 {[%emt 0:01:05]} 58. Rh7 {[%emt 0:00:18]} Rb3+ {[%emt 0:01:58]} 59. Kxf4 {[%emt 0:00:19]} Rb4+ {[%emt 0:00:11] And White is the lucky defender.  Weighted Error Value: White=0.39/Black=0.27 (precise)} 1/2-1/2